Cogmind - Beta 13 @@@ ROGUE MODE // 2024.04.23 @ 20:23:01 Player: CanadianCogs Result: Destroyed by as-42724 with Assembled Blade Performance ------------- Evolutions (1) 500 Regions Visited (3) 600 Robots Destroyed (39) 195 Value Destroyed (802) 802 Prototype IDs (5) 100 Alien Tech Used (0) 0 Bonus (0) 0 TOTAL SCORE: 2197 Bonus ------- None Cogmind --------- Core Integrity 0/400 Matter 28/300 Energy 100/100 System Corruption 2% Temperature Cool (0) Movement Core (200) Ox3 Location -9/Mines Parts ------- > --- POWER (1) -------- (None) > --- PROPULSION (2) --- (None) > --- UTILITY (4) ------ Medium Storage Unit Signal Interpreter Terrain Scan Processor Hacking Suite > --- WEAPON (2) ------- (None) > --- INVENTORY (10) --- ECM Suite Peak State ------------ > --- POWER ------------ Heavy Ion Engine > --- PROPULSION ------- Improved Treads VTOL Module > --- UTILITY ---------- Small Storage Unit Improved Terrain Scanner Terrain Scan Processor Hacking Suite > --- WEAPON ----------- Mini Grenade Launcher Mini Grenade Launcher > --- INVENTORY -------- Signal Interpreter ECM Suite Hacking Suite Particle Cannon Shotgun Grenade Launcher Grenade Launcher [Rating: 21] Favorites ----------- Power Light Ion Engine Engine Light Ion Engine Propulsion Light Treads Treads Light Treads Hover Unit Hover Unit Flight Unit VTOL Module Utility Small Storage Unit Device Improved Terrain Scanner Storage Small Storage Unit Processor Terrain Scan Processor Hackware Hacking Suite Weapon EM Pulse Gun Energy Gun EM Pulse Gun Energy Cannon Particle Cannon Ballistic Gun Shotgun Launcher Grenade Launcher Special Weapon Mining Laser Build | -11 -10 -9 -9 ------- Run | Yrd Mat Mat Min Slots Evolved 2 | . . 2 . Power . | . . . . Propulsion . | . . . . Utility 2 | . . 2 . Weapon . | . . . . Parts Attached 36 | 7 5 19 5 Power 3 | 1 . 2 . Engine 3 | 1 . 2 . Core . | . . . . Reactor . | . . . . Propulsion 8 | 2 2 4 . Treads 4 | 2 . 2 . Leg . | . . . . Wheel . | . . . . Hover 2 | . 2 . . Flight 2 | . . 2 . Utility 9 | 2 1 5 1 Device 3 | 1 . 2 . Storage 2 | 1 . 1 . Processor 2 | . . 1 1 Hackware 2 | . 1 1 . Protection . | . . . . Artifact . | . . . . Weapon 16 | 2 2 8 4 Energy Gun 2 | 2 . . . Energy Cannon 1 | . . . 1 Ballistic Gun 1 | . . . 1 Ballistic Cannon . | . . . . Launcher 10 | . . 8 2 Special Weapon 2 | . 2 . . Impact Weapon . | . . . . Slashing Weapon . | . . . . Piercing Weapon . | . . . . Special Melee Weapon . | . . . . Unidentified Prototypes 1 | . . 1 . Corrupted Parts 2 | 1 1 . . System Corruption 3 | 1 2 . . Parts Lost 18 | . 8 3 7 Power 2 | . 1 . 1 Propulsion 4 | . 2 . 2 Utility 3 | . 1 2 . Weapon 9 | . 4 1 4 Highest Loss Streak 7 | . 5 2 7 To Critical Strikes 1 | . 1 . . Average Slot Usage (%) 85 | . 92 70 93 Engine 10 | . 13 6 10 Treads 12 | . 11 8 19 Hover 7 | . 16 . . Device 5 | . 5 8 . Storage 12 | . 14 11 11 Processor 8 | . . 11 21 Hackware 10 | . 8 12 11 Energy Gun 3 | . 8 . . Launcher 7 | . . 9 18 Special Weapon 6 | . 13 . . Naked Turns . | . . . . Heaviest Build 24 | 13 13 20 24 Greatest Support 43 | 40 40 43 43 Greatest Overweight (x) 6 | . 1 4 6 Average Overweight (x) . | . . . . Largest Inventory Capacity 10 | 8 8 10 10 Average Capacity 8 | 7 8 8 10 Most Carried 8 | 4 8 8 6 Average Carried 4 | . 5 7 3 Final Capacity 10 | 8 8 10 10 Final Carried 8 | 1 8 6 1 Class Distribution -------------------- 78% | Mutant 17% | Scavenger-Mutant 3% | Hacker-Mutant Dominant Class ---------------- Mutant | -10/Materials Mutant | -9/Materials Scavenger-Mutant | -9/Mines Resources | -11 -10 -9 -9 ----------- Run | Yrd Mat Mat Min Matter Collected 507 | 260 70 116 61 Remotely . | . . . . Salvage Created 917 | 210 273 317 117 Parts 55 | 12 26 16 1 Haulers Intercepted 1 | . . 1 . Recyclers Shooed 2 | . . 2 . Parts Field Recycled . | . . . . Retrieved Matter . | . . . . Parts Self-Destructed . | . . . . Prevented . | . . . . Kills | -11 -10 -9 -9 ------- Run | Yrd Mat Mat Min Combat Hostiles Destroyed 24 | . 11 7 6 Melee 2 | . 2 . . Guns 7 | . 5 . 2 Cannons 3 | . 3 . . AOE 12 | . 1 7 4 Classes Destroyed 12 | 3 5 2 2 Worker 2 | 2 . . . Builder 7 | . 3 4 . Tunneler 3 | 3 . . . Hauler 1 | . . 1 . Recycler 3 | 1 . 2 . Operator 1 | . 1 . . Watcher 1 | . 1 . . Swarmer 5 | . 5 . . Grunt 13 | . 6 5 2 Duelist 1 | . . . 1 Sentry 2 | . . 2 . Assembled 3 | . . . 3 Best Kill Streak 7 | 2 7 6 3 Combat Bots Only 4 | . 3 4 3 Max Kills in Single Turn 3 | 1 1 3 2 Gunslinging . | . . . . Exploded 2 | . 1 2 1 Melee 1 | . 1 . . Uniques/NPCs Destroyed . | . . . . Combat | -11 -10 -9 -9 -------- Run | Yrd Mat Mat Min Hostile Shots Fired 202 | . 80 45 77 Missed 54 | . 19 13 22 Damage Taken 2087 | . 620 481 986 Core 548 | . 132 79 337 Absorbed by Shields . | . . . . Regen/Repaired (Parts) 3 | . 3 . . Core Remaining (%) 73 | 100 47 . . Volleys Fired 65 | 9 39 10 7 Largest 2 | 2 2 2 2 Hottest 200 | 80 200 60 91 Shots Fired 110 | 18 61 20 11 Gun 55 | 18 34 . 3 Cannon 3 | . . . 3 Launcher 25 | . . 20 5 Special 27 | . 27 . . Kinetic 3 | . . . 3 Thermal 30 | . 27 . 3 Explosive 25 | . . 20 5 Electromagnetic 52 | 18 34 . . Robot Hit Streak 8 | 6 8 5 3 Robot Miss Streak 6 | 1 6 2 4 Penetration Max . | . . . . Secondary Targets . | . . . . Shots Hit Robots 59 | 12 30 12 5 Core Hits 58 | 6 20 25 7 Critical Kills . | . . . . Critical Parts Destroyed . | . . . . Critical Strikes . | . . . . Melee Attacks . | . . . . Impact . | . . . . Slashing . | . . . . Piercing . | . . . . Sneak Attacks . | . . . . Combat Hostiles . | . . . . Follow-up Attacks . | . . . . Damage Inflicted 2418 | 172 689 1234 323 Guns 504 | 172 293 . 39 Cannons . | . . . . Explosions 1588 | . 75 1234 279 Melee . | . . . . Ramming 38 | . 33 . 5 Kinetic 39 | . . . 39 Thermal 363 | . 363 . . Explosive 1513 | . . 1234 279 Electromagnetic 465 | 172 293 . . Impact . | . . . . Slashing . | . . . . Piercing . | . . . . Highest Corruption 4 | 1 4 . 2 Average Corruption 2 | 1 2 . 2 Corruption Purged . | . . . . Corruption Blocked . | . . . . Effects 8 | . 8 . . Message Errors 3 | . 3 . . Matter Fused 1 | . 1 . . Heat Flow Errors 1 | . 1 . . Energy Discharges 1 | . 1 . . Data Loss (major) 1 | . 1 . . Weapon Failures 1 | . 1 . . Overload Shots . | . . . . Overflow Damage 24 | . 16 8 . Projectiles 16 | . 16 . . Explosions 8 | . . 8 . Melee . | . . . . Knockbacks . | . . . . Impact . | . . . . Kinetic . | . . . . Secondary . | . . . . Self-Inflicted Damage 239 | . 47 149 43 Shots 10 | . 1 7 2 Rammed 15 | . 14 . 1 Targets Rammed 16 | . 15 . 1 Kicked . | . . . . Crushed 1 | . 1 . . Highest Temperature 336 | 54 336 10 12 Average Temperature 82 | 20 99 5 6 Received Heat Transfer 418 | . 192 114 112 Siege Activations . | . . . . Robots Corrupted . | . . . . Combat Hostiles . | . . . . Parts Fried 1 | . 1 . . Impact Corruptions . | . . . . Robots Melted . | . . . . Combat Hostiles . | . . . . Parts Melted . | . . . . Heat Transferred 650 | . 650 . . Parts Sabotaged . | . . . . Parts Stolen . | . . . . Parts Stripped . | . . . . Power Chain Reactions 1 | . 1 . . Alert | -11 -10 -9 -9 ------- Run | Yrd Mat Mat Min Peak Influence 316 | 30 283 316 230 Initial 115 | . 19 106 115 Average 154 | 16 147 196 225 Maximum Alert Level 1 | . 1 1 1 Low Security (%) 57 | 100 73 43 9 Level 1 42 | . 26 56 90 Level 2 . | . . . . Level 3 . | . . . . Level 4 . | . . . . Level 5 . | . . . . High Security . | . . . . Max Security . | . . . . Squads Dispatched 10 | . 5 5 . Investigation 8 | . 5 3 . Extermination . | . . . . Reinforcement 2 | . . 2 . Assault . | . . . . Garrison . | . . . . Intercept . | . . . . Searches Triggered . | . . . . Construction Impeded 2 | . . 2 . Haulers Reinforced . | . . . . Active Scanning Responses . | . . . . Cargo Convoy Interrupts . | . . . . Stealth | -11 -10 -9 -9 --------- Run | Yrd Mat Mat Min Distress Signals 3 | . 2 1 . Communications Jammed . | . . . . Distress Signals . | . . . . Times Spotted 53 | . 25 18 10 Peak Tracking Total 12 | . 5 12 5 Tactical Retreats 1 | . . 1 . Traps | -11 -10 -9 -9 ------- Run | Yrd Mat Mat Min Traps Triggered 3 | . 2 1 . Indirectly . | . . . . Trap Hack Attempts . | . . . . Triggered . | . . . . Disarmed . | . . . . Reprogrammed . | . . . . Reused . | . . . . Traps Extracted . | . . . . Installed . | . . . . Triggered . | . . . . Objects Rigged 5 | . 5 . . Machines | -11 -10 -9 -9 ---------- Run | Yrd Mat Mat Min Machines Disabled 5 | . 2 2 1 Max in Single Turn 2 | . 1 2 1 Machines Repaired . | . . . . Machines Dismantled . | . . . . Machines Sabotaged . | . . . . Overloaded Fab Kills . | . . . . Hacking | -11 -10 -9 -9 --------- Run | Yrd Mat Mat Min Machines Accessed 10 | . 8 2 . Terminals 7 | . 6 1 . Fabricators . | . . . . Repair Stations 1 | . 1 . . Recycling Units 2 | . 1 1 . Scanalyzers . | . . . . Garrison Access . | . . . . Total Hacks 40 | . 32 8 . Successful 29 | . 24 5 . Failed 11 | . 8 3 . Catastrophic 1 | . 1 . . Database Lockouts . | . . . . Manual 28 | . 24 4 . Terminals 32 | . 27 5 . Fabricators . | . . . . Repair Stations 2 | . 2 . . Recycling Units 6 | . 3 3 . Scanalyzers . | . . . . Garrison Access . | . . . . Terminal Hacks 5 | . 4 1 . Prototype ID Bank 2 | . 2 . . Surveillance Status 1 | . 1 . . Recall Investigation 1 | . 1 . . Zone Layout 1 | . . 1 . Fabricator Hacks . | . . . . Repair Station Hacks 2 | . 2 . . Scan Component 1 | . 1 . . Repair 1 | . 1 . . Recycling Unit Hacks 3 | . 1 2 . Report Inventory 2 | . 1 1 . Retrieve Components 1 | . . 1 . Scanalyzer . | . . . . Garrison Access Hacks . | . . . . Unauthorized Hacks 19 | . 17 2 . Terminals 17 | . 15 2 . Track 5 | . 4 1 . Assimilate 1 | . 1 . . Botnet 7 | . 6 1 . Detonate 1 | . 1 . . Disrupt 1 | . 1 . . Operators 2 | . 2 . . Fabricators . | . . . . Repair Stations . | . . . . Recycling Units 2 | . 2 . . Recyclers 1 | . 1 . . Tunnel 1 | . 1 . . Scanalyzers . | . . . . Garrison Access . | . . . . Data Cores Recovered . | . . . . Used . | . . . . Hacking Detections 10 | . 8 2 . Full Trace Events 8 | . 6 2 . Feedback Events . | . . . . Feedback Blocked . | . . . . Robot Schematics Acquired . | . . . . Robots Built . | . . . . Authchips . | . . . . Time . | . . . . Total Robot Build Rating . | . . . . Part Schematics Acquired . | . . . . Parts Built . | . . . . Authchips . | . . . . Time . | . . . . Total Part Build Rating . | . . . . Parts Repaired 1 | . 1 . . Time 36 | . 36 . . Parts Recycled . | . . . . Recycled Matter . | . . . . Retrieved Matter . | . . . . Retrieved Components 10 | . . 10 . Parts Scanalyzed . | . . . . Part Schematics Acquired . | . . . . Parts Damaged . | . . . . Bothacking | -11 -10 -9 -9 ------------ Run | Yrd Mat Mat Min Used RIF Installer . | . . . . Robots Hacked . | . . . . Non-combat . | . . . . Combat . | . . . . Robot Hacks Applied . | . . . . Relay Couplers Released . | . . . . Fabnet Peak Effective % . | . . . . Robots Rewired . | . . . . Allies Hacked . | . . . . Hacks Repelled . | . . . . Allies | -11 -10 -9 -9 -------- Run | Yrd Mat Mat Min Total Allies 1 | . 1 . . Largest Group 1 | . 1 . . Highest-Rated Group 10 | . 10 . . Highest-Rated Ally 10 | . 10 . . Total Orders . | . . . . Ally Attacks . | . . . . Total Damage . | . . . . Kills . | . . . . Allies Corrupted . | . . . . Allies Melted . | . . . . Intel | -11 -10 -9 -9 ------- Run | Yrd Mat Mat Min Robot Analysis Total . | . . . . Derelict Logs Recovered . | . . . . Drone Launches . | . . . . Drone Recoveries . | . . . . Exploration | -11 -10 -9 -9 ------------- Run | Yrd Mat Mat Min Turns Passed 1923 | 312 727 526 358 Spaces Moved 1141 | 140 540 263 198 Core 157 | 9 1 140 7 Treads 545 | 131 125 98 191 Legs . | . . . . Wheels . | . . . . Hover 414 | . 414 . . Flight 25 | . . 25 . Fastest Speed 50 | 50 56 100 160 Average Speed 119 | 152 80 145 167 Slowest Speed 350 | 160 160 275 350 Overloaded Moves . | . . . . Propulsion Burnouts . | . . . . Robots Hopped . | . . . . Cave-ins Triggered . | . . . . Exploration Rate (%) 34 | 7 67 25 40 Regions Visited 3 Branch Regions 1 Pre-discovered Areas 1 | . 1 . . Known Exits Taken . | . . . . Unknown Exits Taken 3 | 1 1 1 . Scrap Searched . | . . . . Spaces Dug . | . . . . Terrain Destroyed 178 | . 7 132 39 Melee . | . . . . Projectile 5 | . 5 . . AOE 173 | . 2 132 39 Terrain Rammed . | . . . . Walls Destroyed . | . . . . Machines Disabled . | . . . . Actions | -11 -10 -9 -9 --------- Run | Yrd Mat Mat Min Total 1536 | 221 711 392 212 Wait 227 | 56 94 77 . Move 1139 | 139 540 262 198 Hop . | . . . . Pick Up 33 | 9 15 9 . Fast Attach 5 | . . 5 . Attach 28 | 7 3 14 4 Detach 7 | . . 7 . Swap 3 | . 2 . 1 Drop 14 | 1 4 8 1 Fire 65 | 9 39 10 7 Melee . | . . . . Ram 3 | . 2 . 1 Kick . | . . . . Crush 12 | . 12 . . Escape Stasis . | . . . . Rewire . | . . . . Trap . | . . . . Miscellaneous . | . . . . Route ------- -11/Scrapyard -10/Materials (discovered 3 exits: *Mat x2 / [*Min]) -9/Materials -9/Mines (discovered 1 exit: [*Zio]) History --------- Turn | Location | Event 34 | -11/Scrapyard | Discovered new exit (range 16) 313 | -11/Scrapyard | Entered Materials 314 | -10/Materials | Build established: Mutant 675 | -10/Materials | Discovered new exit (range 8) 849 | -10/Materials | Discovered new exit (range 12) 970 | -10/Materials | Repaired Corrupted Signal Interpreter 1031 | -10/Materials | Discovered new exit (range 6) 1040 | -10/Materials | Core integrity fell below 50% 1040 | -10/Materials | Entered another Materials area 1040 | -9/Materials | Evolved 2 slots: Utility x2 1068 | -9/Materials | Lost 5 parts (1p2n2w) 1528 | -9/Materials | Discovered new exit (range 13) 1566 | -9/Materials | Entered Mines 1809 | -9/Mines | Assembled infested the area 1896 | -9/Mines | Core integrity fell below 50% 1903 | -9/Mines | A Derelict revealed a hidden shortcut to a safe place 1916 | -9/Mines | Build established: Scavenger-Mutant 1918 | -9/Mines | Core integrity fell below 20% 1924 | -9/Mines | Destroyed by as-42724 with Assembled Blade Last Messages --------------- 01858_ K-01 Serf destroyed. 01863_ Lgt. Treads destroyed. 01870_ as-09322 destroyed. 01873_ The unstable cave ceiling collapses. 01881_ Grenade Launcher destroyed. 01890_ Imp. Treads destroyed. 01891_ Acquired 12 matter. 01893_ Grenade Launcher destroyed. 01894_ Hvy. Ion Engine destroyed. 01896_ as-11744 destroyed. 01896_ as-70774 destroyed. 01903_ A derelict emerges from the shadows: "It's not safe here! Let me show you to a place where you won't have to worry about staying in one piece!" 55-7IF(z) disappears into a concealed tunnel. 01920_ Shotgun destroyed. 01922_ Particle Cannon destroyed. 01923_ Slammed into as-23370. 01923_ Destabilizing: System corrupted (+2). 01924_ Acquired 11 matter. Map ----- +----------------------------------------------------+ | | | | | | | | | | | ?????????????????????????????????????????????????? | | ?????????????????????????????????????????????????? | | ?????????????????????????????????????????????????? | | ?????????????????????????????????????????????????? | | ?????????????????????????????????????????????????? | | ?????????????????????????????????????????????????? | | ?????????????????????????????????????????????????? | | ?????????????????????????????????????????????????? | | ?????????????????????????????????????????????????? | | ?????????????????????????????????????????????????? | | ?????????????####????????????????????????????????? | | ????????????## ##???????????????????????????????? | | ????????????# ####????????????????????????????? | | #########???## ##???????????????????????????? | | #????# ###?????????????????????????? | | ###### #????## ##????????????????????????? | | ?????# #?????# #????????????????????????? | | ?????# #?????## ##???????????????????????? | | ?????# #????## %######% ##??????????????? | | ????## #???## aaa$ % #??????????????? | | ????# #???# a @a % % >#??????????????? | | ????# ##??# # ### #??????????????? | | ????# #??# # #???? ????????????????? | | ????## ##?# ## #?????????????????????? | | ?????## #?## ###### ##????????????????????? | | ####### #??## #????? ##???????????????????? | | # ## ##???# ##??? #???????????????????? | | #????# ##?# #???????????????????? | | #????# ## #???????????????????? | | ##????## ##??????????????????? | | ## ##??????### #??????????????????? | | ?## ##??######?## ## #??????????????????? | | ?## #??## ##?# ##???? #??????????????????? | | ?# ##??# ### #?????????????????????????? | | ?# #???# #?????????????????????????? | | ?# ##??## """ #?????????????????????????? | | ## #???## """ #?????????????????????????? | | ## #????# """ #?????????????????????????? | | ##???# #?????????????????????????? | | ##??# #?????????????????????????? | | ##?###### ##?????????????????????????? | | ### ####???### ##?????????????????????????? | | ##?## #?????## #?????????????????????????? | | #???## ## ######## #?????????????????????????? | | #????###### #?????????????????????????? | +----------------------------------------------------+ Best States ------------- Heat Dissipation 28 Energy Generation 14 Energy Capacity 280 Matter Stores 300 Matter Capacity 300 Sight Range 16 Terrain Scan Range 16 Terrain Scan Density 85 Evasion (%) 53 Recoil Reduction 2 Offensive Hacking 20 Item Schematics ----------------- None Robot Schematics ------------------ None Fabricated ------------ Nothing Alien Tech Used ----------------- None Achievements -------------- None Challenges ------------ None Game ------ Seed CloakRagnarokClaws Manual? 0 Play Time 00:30:46 Cumulative 19.8 hours Start 2024.04.23 @ 19:54:23 End 2024.04.23 @ 20:23:01 Sessions 1 Manual Loads 0 Difficulty Rogue Special Mode None Game No. 28 Rogue 28 Adventurer 0 Explorer 0 Win Type - Total 0 Types 0/0/0/0/0/0/0/0/0 Lore% 18 Gallery% 22 Achievement% 20 Wizard Run 0 Options --------- Layout 0 ASCII 0 Keyboard 0 Movement Mouse Keybinds 0 Fullscreen 2 Font 18/SmallcapsGlow Map View 38x25 Zoom Use 98% Tactical HUD 1 Map Filters NONE Filters NONE Steam 1 RUN: 2f2516e7-1d10-4ec1-a4ec-58409cbed4ed